bitfinex/quotes_SOLUSD_20241113
["timestamp","ask_amount","ask_price","bid_price","bid_amount"]
[1731521165742,0.22549,219.55,219.36,22.596]
[1731521166362,43.902374,219.46,219.36,22.596]
[1731521166548,65.9043066,219.46,219.36,16.4216]
[1731521166865,23.902374,219.44,219.36,16.4216]
[1731521167066,23.902374,219.42,219.36,16.4216]
[1731521167444,0.12549,219.41,219.33,0.4559]
[1731521167648,23.776884,219.4,219.33,0.4559]
[1731521168063,23.776884,219.4,219.31,7.5653]
[1731521168064,23.776884,219.38,219.31,1.5958]
[1731521168571,20.0,219.39,219.31,1.5958]
[1731521168871,23.776884,219.38,219.31,1.1399]
[1731521169371,4.5584,219.38,219.31,1.1399]
[1731521169571,4.5584,219.38,219.29,16.4998]
[1731521169742,0.12549,219.37,219.29,16.9558]
[1731521169955,23.902374,219.37,219.29,18.0958]
[1731521171061,0.12549,219.36,219.29,18.0958]
[1731521172047,0.12549,219.36,219.29,17.6398]
[1731521172548,22.0019326,219.31,219.23,15.7918]
[1731521172865,22.0019326,219.28,219.24,20.0]
[1731521173047,4.5605,219.27,219.24,20.0]
[1731521173242,0.12549,219.25,219.19,1.1405]
[1731521173755,20.12549,219.25,219.17,15.7918]
[1731521173958,23.776884,219.24,219.17,16.248]
[1731521174163,20.0,219.25,219.17,17.3886]
[1731521174467,0.12549,219.23,219.17,15.7918]
[1731521174648,4.5605,219.27,219.17,15.7918]
[1731521174649,24.5605,219.27,219.17,17.3886]
[1731521174852,0.12549,219.26,219.17,17.3886]
[1731521175168,23.776884,219.24,219.17,17.3886]
[1731521175347,23.902374,219.26,219.17,17.3886]
[1731521175751,23.902374,219.24,219.17,15.7918]
[1731521175958,45.9043066,219.24,219.17,15.7918]
[1731521176272,23.902374,219.24,219.17,17.3886]
[1731521176578,23.902374,219.24,219.17,16.9324]
[1731521176747,0.12549,219.21,219.12,1.1409]
[1731521176950,23.902374,219.19,219.11,6.2946]
[1731521177258,0.12549,219.13,219.07,1.1411]
[1731521177451,20.12549,219.09,219.04,15.2008]
[1731521177668,22.0019326,219.06,218.97,22.8147]
[1731521177849,23.776884,219.05,218.97,23.2713]
[1731521178049,23.776884,219.05,218.97,24.413]
[1731521178375,26.5669326,219.06,218.87,0.1]
[1731521178376,22.0019326,218.98,218.89,16.2241]
[1731521178554,23.776884,218.95,218.89,15.7673]
[1731521178765,0.12549,218.94,218.87,1.599]
[1731521179076,23.776884,218.93,218.87,1.599]
[1731521179275,22.1274226,218.92,218.83,0.4569]
[1731521179482,0.12549,218.9,218.83,0.4569]
[1731521179773,22.0019326,218.96,218.83,1.5993]
[1731521179974,23.776884,218.97,218.83,1.5993]
[1731521180268,22.0019326,219.02,218.83,1.5993]
[1731521180576,20.0,219.01,218.84,0.12549]
[1731521180776,22.1274226,218.98,218.83,1.5993]
[1731521180953,0.12549,218.93,218.83,1.5993]
[1731521181154,20.12549,218.93,218.83,1.5993]
[1731521181455,0.12549,218.91,218.83,1.5993]
[1731521181878,23.902374,218.91,218.83,1.5993]
[1731521182053,23.776884,218.91,218.83,1.5993]
[1731521182253,23.776884,218.92,218.83,1.5993]
[1731521183153,23.776884,218.93,218.83,1.5993]
[1731521183360,23.776884,218.91,218.83,1.5993]
[1731521183550,23.776884,218.93,218.83,1.5993]
[1731521183871,23.902374,218.95,218.83,1.5993]
[1731521184075,23.776884,218.95,218.83,3.8841]
[1731521184257,23.776884,218.97,218.83,3.8841]
[1731521184574,23.902374,218.97,218.83,3.8841]
[1731521185279,23.902374,218.93,218.83,1.5993]
[1731521185771,23.776884,218.95,218.83,1.5993]
[1731521186154,22.1274226,218.94,218.83,1.5993]
[1731521186357,23.776884,218.93,218.83,1.5993]
[1731521186555,0.12549,218.92,218.83,1.5993]
[1731521186978,23.776884,218.93,218.83,1.5993]
[1731521187276,20.0,218.99,218.83,1.5993]
[1731521187580,22.0019326,218.96,218.83,1.5993]
[1731521187763,22.1274226,218.95,218.83,1.5993]
[1731521188272,22.0019326,218.88,218.81,16.1945735]
[1731521188460,22.0019326,218.88,218.81,16.6515735]
[1731521188660,23.902374,218.87,218.81,16.1945735]
[1731521188862,4.5685,218.89,218.81,16.1945735]
[1731521188863,23.902374,218.85,218.81,0.4272735]
[1731521189480,23.902374,218.83,218.81,0.4272735]
[1731521189658,4.5685,218.89,218.81,0.4272735]
[1731521189659,65.9043066,218.82,218.81,0.4272735]
[1731521190459,23.776884,218.82,218.81,0.4272735]
[1731521190665,23.776884,218.88,218.82,0.4569]
[1731521191073,0.12549,218.87,218.82,0.4569]
[1731521191283,0.12549,218.87,218.82,1.5993]
[1731521191974,0.12549,218.87,218.81,0.4272735]
[1731521193063,0.12549,218.87,218.81,0.8842735]
[1731521193464,0.12549,218.87,218.81,2.0267735]
[1731521193882,22.0019326,218.92,218.81,2.0267735]
[1731521194073,22.0019326,218.99,218.81,2.0267735]
[1731521194405,26.5679326,219.01,218.83,20.0]
[1731521194685,4.69179,219.0,218.84,3.8839]
[1731521195093,4.5663,219.0,218.84,3.8839]
[1731521195666,0.12549,218.95,218.84,1.5992]
[1731521195865,20.0,218.94,218.84,1.5992]
[1731521196075,0.12549,218.95,218.84,1.5992]
[1731521196285,4.567,218.96,218.84,1.5992]
[1731521196882,0.12549,218.95,218.84,1.5992]
[1731521197088,0.12549,218.93,218.84,1.5992]
[1731521197468,23.902374,218.91,218.84,1.1423]
[1731521197669,22.1274226,218.87,218.81,0.4272735]
[1731521197879,23.902374,218.85,218.81,0.4272735]
[1731521198186,23.902374,218.87,218.81,0.4272735]
[1731521198368,23.902374,218.87,218.81,0.8842735]
[1731521198893,0.12549,218.87,218.81,0.8842735]
[1731521199076,0.12549,218.87,218.81,0.4272735]
[1731521200680,23.902374,218.85,218.81,0.4272735]
[1731521200883,23.902374,218.87,218.81,0.4272735]
[1731521201074,0.12549,218.87,218.82,1.5993]
[1731521202996,0.12549,218.87,218.82,3.8842]
[1731521203392,4.5663,219.0,218.9,162.27451]
[1731521203694,4.5663,219.0,218.87,15.3091]
[1731521203912,4.5649,219.06,218.88,20.0]
[1731521204196,22.0019326,219.05,218.88,20.0]
[1731521204578,4.5649,219.06,218.88,20.0]
[1731521204984,4.5649,219.06,218.89,3.8831]
[1731521205294,4.5641,219.1,218.9,0.12549]
[1731521205599,0.12549,219.09,218.9,0.12549]
[1731521205781,22.1274226,219.09,218.89,3.8831]
[1731521205994,0.12549,219.03,218.89,3.8831]
[1731521206379,4.5641,219.1,218.9,0.12549]
[1731521206597,4.5638,219.12,218.92,20.0]
[1731521206800,4.5638,219.12,218.94,20.0]
[1731521206988,26.5657326,219.12,218.94,20.0]
[1731521207395,0.12549,219.11,218.95,3.8821]
[1731521207705,26.5657326,219.12,218.95,3.8821]
[1731521207916,0.12549,219.1,218.95,3.8821]
[1731521208087,23.776884,219.1,218.95,3.8821]
[1731521208277,4.5641,219.1,218.95,3.8821]
[1731521208482,23.776884,219.09,218.95,3.8821]
[1731521209008,4.5632,219.15,218.95,3.8821]
[1731521209211,22.0019326,219.21,219.01,23.776884]
[1731521209504,4.5621,219.2,219.02,20.0]
[1731521210110,22.0019326,219.19,219.02,20.0]
[1731521210294,4.5624,219.18,219.03,3.8805]
[1731521211287,23.902374,219.2,219.03,3.8805]
[1731521211707,23.776884,219.2,219.03,3.8805]
[1731521212088,0.12549,219.19,219.03,3.8805]
[1731521212802,4.68769,219.19,219.03,3.8805]
[1731521212997,23.776884,219.18,219.03,3.8805]
[1731521213192,0.12549,219.17,219.03,3.8805]
[1731521213598,22.1274226,219.17,219.03,1.5978]
[1731521213906,22.0019326,219.13,219.03,1.5978]
[1731521214084,23.776884,219.16,219.03,1.5978]
[1731521214488,0.12549,219.15,219.03,1.5978]
[1731521214697,0.12549,219.15,219.03,1.1413]
[1731521214919,26.6906226,219.15,219.03,1.1413]
[1731521215204,0.12549,219.13,219.03,1.1413]
[1731521215514,0.12549,219.11,219.03,1.1413]
[1731521215685,0.12549,219.11,219.01,0.4566]
[1731521215686,0.12549,219.09,219.01,0.4566]
[1731521216105,22.0019326,219.13,219.01,1.5981]
[1731521216298,22.0019326,219.17,219.01,1.5981]
[1731521216504,23.776884,219.16,219.01,3.8811]
[1731521217019,6.1472,219.24,219.03,20.0]
[1731521217304,6.1472,219.24,219.05,36.6366]
[1731521217305,0.12549,219.22,219.05,36.6366]
[1731521217610,0.12549,219.18,219.05,36.6366]
[1731521218110,0.12549,219.2,219.05,36.6366]
[1731521218302,0.12549,219.18,219.05,36.6366]
[1731521218607,23.776884,219.16,219.06,1.5976]
[1731521218788,23.776884,219.18,219.06,1.5976]
[1731521219102,0.12549,219.17,219.06,21.5976]
[1731521219496,28.338984,219.2,219.06,23.88]
[1731521219697,6.1472,219.24,219.06,23.88]
[1731521220000,0.12549,219.22,219.06,23.88]
[1731521220207,0.12549,219.19,219.06,23.88]
[1731521220710,0.12549,219.2,219.06,23.88]
[1731521221003,23.902374,219.2,219.06,23.88]
[1731521221788,50.4664066,219.2,219.06,23.88]
[1731521222103,28.464474,219.2,219.06,23.88]
[1731521222902,50.4664066,219.2,219.06,3.88]
[1731521223903,22.0019326,219.16,219.05,16.6366]
[1731521224091,23.902374,219.09,219.05,16.6366]
[1731521224499,22.0019326,219.16,219.05,18.2343]
[1731521224710,23.776884,219.17,219.05,18.2343]
[1731521225008,0.12549,219.16,219.05,18.2343]
[1731521225612,23.776884,219.17,219.06,20.0]
[1731521225987,23.902374,219.19,219.07,1.5975]
[1731521226805,0.12549,219.17,219.07,1.5975]
[1731521227105,0.12549,219.13,219.05,16.6366]
[1731521227296,23.902374,219.13,219.05,16.6366]
[1731521227896,0.12549,219.09,219.05,16.6366]
[1731521228198,23.902374,219.07,219.01,0.4565]
[1731521229908,28.467074,219.07,219.01,0.4565]
[1731521230107,0.12549,219.08,219.01,0.4565]
[1731521230811,22.1274226,219.08,218.99,17.6066]
[1731521231114,22.1274226,219.02,218.94,1.1418]
[1731521231405,22.0019326,219.08,218.92,16.0544]
[1731521231612,23.776884,219.08,218.92,17.1963]
[1731521231995,23.776884,219.07,218.93,0.12549]
[1731521232213,22.0019326,219.12,218.93,0.12549]
[1731521232402,26.5657326,219.12,218.93,0.12549]
[1731521232599,26.5657326,219.12,218.93,20.12549]
[1731521232791,4.5634,219.14,218.96,15.5977]
[1731521233012,4.5634,219.14,218.97,20.0]
[1731521234010,0.12549,219.13,218.98,3.8815]
[1731521234996,22.0019326,219.19,219.0,6.4221]
[1731521235210,32.24174867,219.21,219.03,20.0]
[1731521235394,4.5618,219.21,219.03,20.0]
[1731521236218,0.12549,219.2,219.03,20.0]
[1731521236412,0.12549,219.18,219.04,1.5978]
[1731521236714,23.902374,219.18,219.04,1.5978]
[1731521236903,4.5622,219.19,219.04,1.5978]
[1731521237104,4.5622,219.19,219.04,3.8804]
[1731521237314,0.12549,219.2,219.04,3.8804]
[1731521237701,4.5619,219.21,219.04,3.8804]
[1731521237903,4.5619,219.21,219.05,15.5977]
[1731521238217,4.5607,219.26,219.06,26.4221]
[1731521238401,33.4038326,219.27,219.06,26.4221]
[1731521238402,0.12549,219.23,219.07,3.8798]
[1731521238598,4.5612,219.24,219.07,3.8798]
[1731521238802,22.0019326,219.23,219.07,3.8798]
[1731521239213,0.12549,219.23,219.07,3.8798]
[1731521239417,22.0019326,219.25,219.07,3.8798]
[1731521239727,4.5607,219.26,219.09,20.0]
[1731521240107,22.1274226,219.25,219.09,20.0]
[1731521240308,22.0019326,219.25,219.09,20.0]
[1731521241112,4.5614,219.23,219.1,1.5974]
[1731521241521,4.5614,219.23,219.1,3.8794]
[1731521241728,22.0019326,219.31,219.11,15.5977]
[1731521242024,22.0019326,219.31,219.1,3.8794]
[1731521242025,4.5595,219.32,219.14,43.776884]
[1731521242229,4.5595,219.32,219.16,20.0]
[1731521242740,4.5587,219.36,219.18,20.0]
[1731521242934,4.5587,219.36,219.2,20.0]
[1731521243106,22.0019326,219.39,219.2,20.0]
[1731521243313,4.5583,219.38,219.22,20.0]
[1731521243709,0.12549,219.37,219.22,20.0]
[1731521244221,4.5587,219.36,219.23,1.5964]
[1731521245512,23.776884,219.37,219.23,1.5964]
[1731521245805,0.12549,219.36,219.23,1.5964]
[1731521246004,45.7788166,219.37,219.23,1.5964]
[1731521246005,22.0019326,219.33,219.23,1.5964]
[1731521246315,23.902374,219.3,219.21,15.4722]
[1731521246524,23.776884,219.3,219.21,15.4722]
[1731521246724,0.12549,219.3,219.21,15.4722]
[1731521247222,0.12549,219.3,219.21,15.0161]
[1731521247223,23.776884,219.27,219.21,15.0161]
[1731521247408,0.12549,219.26,219.21,15.0161]
[1731521247707,23.776884,219.25,219.21,15.0161]
[1731521249330,4.5597,219.31,219.22,20.0]
[1731521249513,4.5589,219.35,219.22,20.0]
[1731521250934,0.12549,219.36,219.23,1.5964]
[1731521252306,4.5589,219.35,219.23,1.5964]
[1731521252645,23.776884,219.34,219.23,1.5964]
[1731521255708,4.5583,219.38,219.23,3.8771]
[1731521255908,23.776884,219.37,219.23,3.8771]
[1731521256325,23.776884,219.37,219.24,6.4252]
[1731521256532,23.776884,219.37,219.25,20.0]
[1731521257114,28.335384,219.37,219.26,1.5961]
[1731521257626,23.902374,219.38,219.26,3.8764]
[1731521257813,23.776884,219.38,219.27,16.6431]
[1731521258017,4.5577,219.41,219.28,20.0]
[1731521259020,26.5596326,219.41,219.28,20.0]
[1731521259205,26.5596326,219.41,219.29,1.596]
[1731521259411,23.776884,219.4,219.29,1.596]
[1731521259824,0.12549,219.39,219.29,1.596]
[1731521260026,0.12549,219.32,219.27,16.6431]
[1731521260226,38.8401,219.41,219.27,16.6431]
[1731521260227,23.902374,219.3,219.27,16.6431]
[1731521260525,23.776884,219.28,219.2,16.0694]
[1731521261225,28.337384,219.28,219.2,16.5256]
[1731521261830,28.337384,219.28,219.2,17.6661]
[1731521262509,23.776884,219.28,219.2,17.6661]
[1731521262706,22.0019326,219.34,219.2,17.6661]
[1731521262925,23.776884,219.33,219.2,17.6661]
[1731521263124,4.5589,219.35,219.22,1.5965]
[1731521263435,22.0019326,219.34,219.22,1.5965]
[1731521263730,4.5589,219.35,219.22,1.5965]
[1731521263928,26.5605326,219.37,219.22,3.8773]
[1731521264231,4.5586,219.37,219.22,3.8773]
[1731521264729,4.5582,219.39,219.23,0.12549]
[1731521265430,4.5582,219.39,219.25,15.4812]
[1731521265629,22.0019326,219.46,219.28,20.0]
[1731521266026,22.0019326,219.46,219.3,20.0]
[1731521266330,22.0019326,219.47,219.3,20.0]
[1731521267235,22.0019326,219.45,219.3,20.0]
[1731521267444,4.5562,219.48,219.31,3.8756]
[1731521267652,4.5562,219.48,219.33,20.0]
[1731521268137,4.5562,219.48,219.35,20.0]
[1731521268339,22.0019326,219.46,219.35,20.0]
[1731521268526,22.0019326,219.45,219.35,20.0]
[1731521269033,4.5562,219.48,219.35,20.0]
[1731521269429,4.5562,219.48,219.36,1.5954]
[1731521270336,22.1274226,219.47,219.36,1.5954]
[1731521270714,0.12549,219.47,219.36,1.5954]
[1731521271016,0.12549,219.45,219.36,1.5954]
[1731521271213,23.902374,219.45,219.36,1.5954]
[1731521272218,4.5567,219.46,219.36,1.5954]
[1731521272439,4.5558,219.5,219.36,1.5954]
[1731521273040,4.5555,219.52,219.38,20.0]
[1731521273347,22.0019326,219.53,219.38,20.0]
[1731521273519,4.5549,219.54,219.38,20.0]
[1731521273520,22.0019326,219.49,219.38,20.0]
[1731521273920,22.0019326,219.51,219.38,20.0]
[1731521274531,4.68129,219.5,219.39,1.5953]
[1731521274941,23.776884,219.49,219.39,1.5953]
[1731521275617,22.0019326,219.45,219.38,20.0]
[1731521275821,22.1274226,219.43,219.37,16.1587]
[1731521276128,23.776884,219.44,219.37,16.1587]
[1731521276326,23.776884,219.42,219.37,16.1587]
[1731521276532,28.334384,219.42,219.37,16.1587]
[1731521277645,0.1,219.29,219.13,16.464]
[1731521277822,23.902374,219.14,219.09,5.59830317]
[1731521278035,22.0019326,219.16,219.09,5.59830317]
[1731521278346,23.776884,219.15,219.05,17.6054]
[1731521278730,22.0019326,219.16,219.05,17.6054]
[1731521278928,22.0019326,219.12,219.05,17.6054]
[1731521279632,22.0019326,219.12,219.06,20.0]
[1731521280248,22.0019326,219.14,219.06,20.4564]
[1731521280427,22.0019326,219.14,219.05,17.6054]
[1731521281342,22.0019326,219.14,219.05,17.1489]
[1731521281543,22.0019326,219.12,219.05,17.1489]
[1731521282035,45.9043066,219.14,219.05,17.1489]
[1731521282234,22.0019326,219.12,219.05,17.1489]
[1731521282860,44.0038652,219.06,219.0,1.7545]
[1731521283143,44.0038652,219.01,218.87,5.58154903]
[1731521283451,22.0019326,219.01,218.85,0.1]
[1731521283752,22.0019326,218.97,218.89,0.1]
[1731521283926,50.04716479,219.12,218.86,7.06462844]
[1731521283927,22.0019326,218.91,218.86,7.06462844]
[1731521284127,22.0019326,219.01,218.96,140.3980674]
[1731521284128,23.776884,219.0,218.96,140.3980674]
[1731521284335,23.776884,219.0,218.87,1.1422]
[1731521284543,20.26671843,218.89,218.87,1.1422]
[1731521284750,22.0019326,218.89,218.87,1.1422]
[1731521285826,22.0019326,218.89,218.84,0.4569]
[1731521286030,22.0019326,218.85,218.81,1.5697735]
[1731521286249,22.0019326,218.82,218.81,0.4272735]
[1731521287545,45.7788166,218.82,218.81,0.4272735]
[1731521287748,65.9043066,218.82,218.81,0.4272735]
[1731521291050,87.9062392,218.82,218.81,0.4272735]
[1731521291350,59.897874,218.81,218.62,1.1435]
[1731521291549,22.0019326,218.68,218.62,1.1435]
[1731521292464,22.0019326,218.66,218.56,1.1438]
[1731521293135,22.0019326,218.67,218.56,1.1438]
[1731521293355,22.0019326,218.67,218.58,0.4574]
[1731521293658,23.776884,218.66,218.58,0.4574]
[1731521294150,22.0019326,218.66,218.57,0.915]
[1731521294336,22.0019326,218.6,218.51,0.9152]
[1731521294539,22.0019326,218.61,218.51,0.9152]
[1731521295056,45.7788166,218.6,218.51,0.9152]
[1731521295350,39.845884,218.6,218.46,0.9154]
[1731521295552,23.776884,218.6,218.5,0.9152]
[1731521296054,23.902374,218.6,218.5,0.9152]
[1731521296444,23.776884,218.6,218.43,0.1]
[1731521296649,23.776884,218.6,218.52,0.9152]
[1731521297459,23.776884,218.6,218.5,3.2035]
[1731521297682,23.776884,218.6,218.51,0.9152]
[1731521297951,23.776884,218.62,218.54,0.9151]
[1731521298154,22.0019326,218.64,218.5,2.2882]
[1731521298155,4.5735,218.66,218.56,0.915]
[1731521299336,26.5754326,218.66,218.56,0.915]
[1731521299539,4.5735,218.66,218.56,0.915]
[1731521299761,20.642,218.68,218.57,0.915]
[1731521299945,42.6439326,218.68,218.57,0.915]
[1731521300354,22.0019326,218.67,218.57,0.915]
[1731521300555,42.6439326,218.68,218.57,0.915]
[1731521301045,22.0019326,218.7,218.59,1.3421735]
[1731521301242,22.0019326,218.69,218.59,1.3421735]
[1731521301465,22.0019326,218.68,218.59,1.3421735]
[1731521301845,22.0019326,218.69,218.59,1.3421735]
[1731521302044,4.5725,218.7,218.59,1.3421735]
[1731521302363,22.0019326,218.69,218.59,1.3421735]
[1731521302756,0.12549,218.69,218.59,1.3421735]
[1731521302956,22.0019326,218.69,218.59,1.3421735]
[1731521303149,4.5728,218.68,218.59,1.3421735]
[1731521303762,23.776884,218.78,218.59,1.3421735]
[1731521303945,22.0019326,218.73,218.59,3.6294735]
[1731521304362,0.12549,218.72,218.59,3.6294735]
[1731521304967,4.69759,218.72,218.59,3.6294735]
[1731521305667,22.0019326,218.7,218.59,3.6294735]
[1731521306564,4.5726,218.69,218.59,3.6294735]
[1731521306749,22.0019326,218.68,218.59,3.6294735]
[1731521307057,22.0019326,218.7,218.59,3.6294735]
[1731521307461,22.0019326,218.68,218.59,3.6294735]
[1731521307865,22.1274226,218.7,218.59,2.7145735]
[1731521308069,22.0019326,218.69,218.59,2.7145735]
[1731521308365,22.0019326,218.68,218.59,2.7145735]
[1731521308559,0.12549,218.7,218.59,2.7145735]
[1731521308560,22.0019326,218.69,218.59,2.7145735]
[1731521308785,4.5728,218.68,218.59,2.7145735]
[1731521309766,26.5747326,218.68,218.59,2.7145735]
[1731521309966,4.5728,218.68,218.59,3.6294735]
[1731521310270,22.0019326,218.73,218.59,3.6294735]
[1731521310463,22.0019326,218.77,218.61,20.0]
[1731521310670,22.0019326,218.77,218.63,20.0]
[1731521310850,22.0019326,218.76,218.63,20.0]
[1731521311452,4.5714,218.75,218.63,20.0]
[1731521311857,0.12549,218.74,218.61,0.9148]
[1731521312054,22.0019326,218.65,218.59,0.4272735]
[1731521312271,22.1274226,218.64,218.59,0.4272735]
[1731521313653,4.5739,218.63,218.59,0.4272735]
[1731521314568,4.5739,218.63,218.59,0.10953814]
[1731521314872,22.0019326,218.62,218.59,0.10953814]
[1731521315048,4.5743,218.61,218.59,0.10953814]
[1731521315553,0.12549,218.64,218.59,0.10953814]
[1731521315869,4.69919,218.64,218.59,0.10953814]
[1731521316169,4.5724,218.7,218.59,0.10953814]
[1731521316362,4.5724,218.7,218.59,3.31173814]
[1731521316576,4.5724,218.7,218.61,20.0]
[1731521317083,4.5716,218.74,218.62,0.9148]
[1731521318185,4.572,218.72,218.62,3.2018]
[1731521318479,4.5712,218.76,218.62,3.2018]
[1731521318864,0.12549,218.75,218.62,3.2018]
[1731521319293,4.5712,218.76,218.66,20.0]
[1731521319669,4.5703,218.8,218.68,20.0]
[1731521320069,4.5699,218.82,218.69,3.2008]
[1731521320485,4.5695,218.84,218.73,20.0]
[1731521321169,4.5695,218.84,218.74,23.776884]
[1731521321372,4.5695,218.84,218.75,20.0]
[1731521321587,4.5685,218.89,218.76,0.9142]
[1731521322488,15.9897,218.89,218.77,20.0]
[1731521322696,4.5685,218.89,218.77,20.0]
[1731521323566,4.5685,218.89,218.77,20.9141]
[1731521325783,20.12549,218.88,218.76,3.1998]
[1731521327070,4.5689,218.87,218.76,2.2856]
[1731521329176,4.5689,218.87,218.77,6.4462]
[1731521329380,4.5678,218.92,218.78,43.776884]
[1731521329599,4.5678,218.92,218.78,43.876884]
[1731521329790,4.5666,218.98,218.78,43.876884]
[1731521329969,4.5666,218.98,218.79,0.1]
[1731521329970,0.12549,218.97,218.79,0.1]
[1731521330371,4.567,218.96,218.8,3.1991]
[1731521330669,4.567,218.96,218.84,20.0]
[1731521331175,4.567,218.96,218.85,23.776884]
[1731521331486,49.2774326,218.99,218.86,20.9138]
[1731521331487,4.69209,218.98,218.86,20.9138]
[1731521331686,4.69209,218.98,218.86,20.0]
[1731521331687,22.0019326,218.96,218.86,20.0]
[1731521331894,58.1105226,218.98,218.84,2.2846]
[1731521332391,22.0019326,218.94,218.81,0.914]
[1731521332565,22.0019326,218.94,218.82,23.776884]
[1731521333485,4.5676,218.93,218.83,0.9139]
[1731521334187,21.741,219.17,219.03,156.86717051]
[1731521334403,21.741,219.17,218.92,0.1]
[1731521334404,4.5637,219.12,218.99,43.776884]
[1731521334577,21.641,219.17,218.99,43.776884]
[1731521334895,4.5633,219.14,218.99,43.776884]
[1731521335084,4.88123536,219.13,218.99,43.776884]
[1731521335283,4.88123536,219.13,219.01,43.776884]
[1731521335481,0.31773536,219.13,219.04,20.0]
[1731521335785,0.31773536,219.13,219.06,20.0]
[1731521336484,4.88133536,219.13,219.02,2.2828]
[1731521336687,4.88133536,219.13,219.02,3.1959]
[1731521337289,0.31773536,219.13,219.03,23.776884]
[1731521337489,0.31773536,219.13,219.05,23.776884]
[1731521337787,0.31773536,219.13,219.06,20.0]
[1731521339391,0.31773536,219.13,219.08,20.0]
[1731521340393,0.31773536,219.13,219.09,23.776884]
[1731521340690,0.31773536,219.13,219.1,20.0]
[1731521340894,4.88123536,219.13,219.01,3.1961]
[1731521341086,4.88123536,219.13,219.01,23.1961]
[1731521341792,4.88123536,219.13,219.01,3.1961]
[1731521342402,0.31773536,219.13,219.02,23.776884]
[1731521342902,0.31773536,219.13,219.03,20.1]
[1731521343193,0.31773536,219.13,219.05,20.0]
[1731521343393,0.31773536,219.13,219.07,20.0]
[1731521343590,0.31773536,219.13,219.11,20.0]
[1731521344179,0.31773536,219.13,219.1,2.282]
[1731521345011,0.31773536,219.13,219.06,20.0]
[1731521345174,4.88123536,219.13,219.02,0.9131]
[1731521345889,4.88123536,219.13,219.0,3.1962]
[1731521346981,0.12549,219.1,218.98,0.9133]
[1731521347302,0.12549,219.1,218.95,2.2835]
[1731521347493,23.902374,219.08,218.95,2.2835]
[1731521347708,23.902374,219.08,218.95,3.1969]
[1731521348590,23.902374,219.06,218.91,2.284]
[1731521349090,4.5653,219.04,218.91,2.284]
[1731521349302,24.5653,219.04,218.91,2.284]
[1731521349504,20.0,219.0,218.87,2.2844]
[1731521349997,61.1604166,218.97,218.81,6.4625]
[1731521350179,20.0,218.96,218.82,3.1988]
[1731521351204,4.5672,218.95,218.82,2.2849]
[1731521351374,22.0019326,218.93,218.82,2.2849]
[1731521351577,20.0,218.92,218.78,3.1995]
[1731521351796,22.0019326,218.9,218.78,3.1995]
[1731521351994,20.0,218.92,218.78,3.1995]
[1731521351995,42.0019326,218.92,218.78,3.1995]
[1731521352598,19.846726,218.97,218.79,0.1]
[1731521352599,15.3816,218.97,218.79,0.1]
[1731521352803,45.7788166,218.96,218.79,20.0]
[1731521352978,20.12549,218.95,218.79,20.0]
[1731521353285,4.5673,218.95,218.8,0.12549]
[1731521353695,4.5673,218.95,218.82,23.776884]
[1731521354008,4.5673,218.95,218.83,20.0]
[1731521354703,19.9485,218.97,218.85,20.0]
[1731521354896,15.3816,218.97,218.87,20.0]
[1731521355208,28.4158326,219.03,218.88,23.776884]
[1731521355209,4.5667,218.98,218.88,23.776884]
[1731521355390,4.5667,218.98,218.89,20.0]
[1731521356303,4.69119,219.02,218.9,0.9136]
[1731521356490,4.5657,219.02,218.9,3.1977]
[1731521356691,15.3816,219.04,218.93,23.776884]
[1731521356692,19.947,219.04,218.93,23.776884]
[1731521356893,15.3816,219.04,218.94,20.0]
[1731521357287,15.3816,219.04,218.9,23.1977]